bitfinex-derivatives/quotes_BTCF0:USTF0_20250108
["timestamp","ask_amount","ask_price","bid_price","bid_amount"]
[1736363612233,0.052916,94512.0,94501.0,0.3608]
[1736363612234,0.3608,94515.0,94501.0,0.3608]
[1736363612433,0.052919,94508.0,94501.0,0.3608]
[1736363612737,0.3608,94515.0,94501.0,0.3608]
[1736363612944,0.052919,94508.0,94501.0,0.3608]
[1736363613536,0.052914,94516.0,94501.0,0.3608]
[1736363613731,0.001,94508.0,94501.0,0.3618]
[1736363614028,0.001,94508.0,94507.0,0.052919]
[1736363615429,0.001,94508.0,94507.0,0.413719]
[1736363615922,0.001,94508.0,94507.0,1.916719]
[1736363616528,0.1674,94540.0,94520.0,0.052911]
[1736363616529,0.05291,94523.0,94520.0,0.052911]
[1736363616730,0.05291,94523.0,94522.0,0.3608]
[1736363616930,0.052914,94517.0,94515.0,0.3608]
[1736363617340,0.052914,94517.0,94516.0,1.5]
[1736363617633,0.052904,94534.0,94516.0,1.5]
[1736363617830,0.052903,94535.0,94534.0,0.052903]
[1736363618026,0.09274544,94539.0,94538.0,0.052902]
[1736363618548,0.2142725,94560.0,94538.0,1.552902]
[1736363618933,0.413697,94546.0,94541.0,0.0529]
[1736363619143,0.052896,94548.0,94544.0,0.052898]
[1736363619442,0.052896,94548.0,94542.0,0.3608]
[1736363619443,0.1596,94561.0,94546.0,0.052897]
[1736363619637,0.052895,94551.0,94546.0,0.052897]
[1736363619942,0.01374975,94561.0,94550.0,0.3608]
[1736363620142,0.00076,94564.0,94550.0,0.3608]
[1736363620440,0.052888,94562.0,94555.0,0.052892]
[1736363620643,0.1613825,94570.0,94550.0,0.3608]
[1736363620838,0.1613825,94580.0,94550.0,0.3608]
[1736363621142,0.052887,94565.0,94556.0,0.052891]
[1736363621533,0.052887,94564.0,94558.0,0.05289]
[1736363622147,0.052887,94564.0,94555.0,0.001]
[1736363622148,0.052891,94557.0,94555.0,0.001]
[1736363623340,0.3618,94564.0,94539.0,0.052901]
[1736363623537,0.052896,94548.0,94540.0,0.0529]
[1736363623736,0.052893,94554.0,94538.0,0.1613825]
[1736363624133,0.052893,94554.0,94547.0,0.052896]
[1736363624328,0.003,94557.0,94555.0,0.001]
[1736363624528,0.052891,94557.0,94555.0,0.001]
[1736363624729,0.052891,94556.0,94555.0,0.001]
[1736363625137,0.052893,94553.0,94548.0,0.052896]
[1736363625543,0.3608,94564.0,94547.0,0.001]
[1736363625731,0.1613825,94560.0,94547.0,0.001]
[1736363625930,0.052896,94548.0,94547.0,0.001]
[1736363626935,0.052895,94550.0,94529.0,0.052906]
[1736363627139,0.052904,94534.0,94525.0,0.052908]
[1736363627342,0.052901,94540.0,94531.0,0.052905]
[1736363627642,0.001,94548.0,94530.0,0.1613825]
[1736363627843,0.001,94548.0,94535.0,0.052903]
[1736363628034,0.17892257,94553.0,94535.0,0.052903]
[1736363628438,0.17892257,94553.0,94531.0,0.001]
[1736363628439,0.09274544,94546.0,94531.0,0.001]
[1736363628646,0.052898,94545.0,94531.0,0.001]
[1736363628842,0.09274544,94546.0,94537.0,0.3608]
[1736363629032,0.09274544,94546.0,94541.0,0.0529]
[1736363629238,0.09274544,94546.0,94537.0,0.3608]
[1736363629439,0.09274544,94546.0,94544.0,0.052898]
[1736363629637,0.09274544,94546.0,94535.0,0.001]
[1736363629941,0.052903,94536.0,94535.0,0.001]
[1736363630948,0.052907,94529.0,94520.0,0.052911]
[1736363631244,0.3608,94535.0,94520.0,0.052911]
[1736363631546,0.05291,94523.0,94520.0,0.052911]
[1736363632048,0.3745927,94535.0,94519.0,1.50064]
[1736363632233,0.3745927,94535.0,94520.0,0.001]
[1736363632439,0.052908,94526.0,94520.0,0.001]
[1736363632747,0.052905,94533.0,94529.0,0.052906]
[1736363632943,0.001,94536.0,94528.0,0.3608]
[1736363633334,0.001,94536.0,94532.0,0.052904]
[1736363634041,0.15578995,94537.0,94533.0,1.5]
[1736363634248,0.15578995,94537.0,94533.0,1.552904]
[1736363634543,0.004,94536.0,94535.0,0.052903]
[1736363634941,0.15978995,94536.0,94535.0,0.052903]
[1736363635150,0.15578995,94536.0,94535.0,0.052903]
[1736363636340,0.15578995,94540.0,94539.0,0.052901]
[1736363636537,0.15578995,94540.0,94539.0,0.413701]
[1736363636947,0.18557744,94547.0,94546.0,0.052897]
[1736363637242,0.18557744,94547.0,94546.0,0.413697]
[1736363637446,0.18557744,94547.0,94546.0,1.913697]
[1736363637840,0.13876334,94552.0,94551.0,0.052894]
[1736363638034,0.21549178,94561.0,94551.0,0.413694]
[1736363638345,0.5339,94589.0,94560.0,0.413689]
[1736363638560,0.21863341,94582.0,94568.0,0.3608]
[1736363638844,0.052877,94581.0,94580.0,0.3608]
[1736363639042,0.052877,94581.0,94580.0,0.413678]
[1736363639348,0.052884,94570.0,94569.0,0.052884]
[1736363639741,0.052884,94570.0,94569.0,1.552884]
[1736363640645,0.001,94569.0,94564.0,0.052887]
[1736363640845,0.001,94569.0,94560.0,0.3618]
[1736363641143,0.052889,94561.0,94560.0,0.3608]
[1736363641739,0.052894,94552.0,94551.0,0.18860162]
[1736363641941,0.1728,94560.0,94540.0,0.36144]
[1736363642141,0.05289,94559.0,94545.0,0.052897]
[1736363642446,0.052896,94549.0,94545.0,0.052897]
[1736363642646,0.1728,94560.0,94540.0,0.3608]
[1736363642840,0.052896,94549.0,94540.0,0.3608]
[1736363643037,0.05289,94559.0,94541.0,0.0529]
[1736363643241,0.3604,94559.0,94540.0,0.3608]
[1736363643447,0.3604,94558.0,94540.0,0.3608]
[1736363643644,0.0529,94541.0,94540.0,0.3608]
[1736363644247,0.052894,94551.0,94540.0,0.3608]
[1736363644248,0.3604,94551.0,94540.0,0.3608]
[1736363644441,0.3604,94559.0,94548.0,0.3608]
[1736363644643,0.052893,94553.0,94548.0,0.3608]
[1736363644854,0.3604,94559.0,94548.0,0.3608]
[1736363645046,0.052891,94558.0,94546.0,0.052897]
[1736363645351,0.052891,94558.0,94545.0,0.002]
[1736363645352,0.052897,94547.0,94545.0,0.002]
[1736363645551,0.052897,94546.0,94545.0,0.002]
[1736363646546,0.3608,94554.0,94537.0,0.3608]
[1736363646851,0.052897,94547.0,94537.0,0.3608]
[1736363647042,0.3608,94554.0,94537.0,0.3608]
[1736363647250,0.052894,94552.0,94547.0,0.052896]
[1736363647555,0.052894,94552.0,94546.0,0.052897]
[1736363647847,0.052894,94552.0,94547.0,0.052896]
[1736363648051,0.052891,94557.0,94551.0,0.052894]
[1736363648349,0.052893,94554.0,94548.0,0.052895]
[1736363648652,0.052893,94553.0,94545.0,0.413698]
[1736363649051,0.3608,94549.0,94526.0,0.3608]
[1736363649242,0.052904,94535.0,94531.0,0.052905]
[1736363649554,0.052903,94536.0,94526.0,0.3608]
[1736363649744,0.052907,94530.0,94526.0,0.3608]
[1736363649946,0.052897,94546.0,94527.0,0.052908]
[1736363650149,0.052897,94546.0,94542.0,0.052899]
[1736363650340,0.07066744,94552.0,94535.0,0.3608]
[1736363650651,0.07066744,94552.0,94549.0,0.3608]
[1736363650857,0.052897,94547.0,94543.0,1.5]
[1736363651045,0.052897,94547.0,94546.0,0.3608]
[1736363651446,0.3604,94555.0,94546.0,0.3608]
[1736363651741,0.052895,94549.0,94547.0,0.052896]
[1736363651941,0.052896,94547.0,94546.0,0.3608]
[1736363652546,0.052896,94547.0,94543.0,1.501]
[1736363652547,0.052898,94544.0,94543.0,0.001]
[1736363652750,0.052903,94536.0,94535.0,0.001]
[1736363652949,0.413698,94544.0,94529.0,0.052906]
[1736363653150,0.052903,94536.0,94529.0,0.052906]
[1736363653356,0.052903,94536.0,94533.0,0.3608]
[1736363653662,0.07075467,94543.0,94540.0,0.0529]
[1736363654050,0.07075467,94543.0,94541.0,0.3608]
[1736363654251,0.052903,94536.0,94534.0,0.3608]
[1736363654653,0.052903,94535.0,94534.0,0.3608]
[1736363654857,0.3604,94541.0,94528.0,1.5]
[1736363655055,0.052907,94529.0,94528.0,1.5]
[1736363655258,0.052907,94529.0,94523.0,0.3608]
[1736363655259,0.052902,94538.0,94523.0,0.3608]
[1736363655555,0.052909,94524.0,94523.0,0.3608]
[1736363656055,0.052914,94516.0,94515.0,0.18916162]
[1736363656257,0.052921,94503.0,94502.0,0.3608]
[1736363656461,0.052922,94501.0,94500.0,0.1]
[1736363656759,0.052926,94494.0,94493.0,0.25293456]
[1736363656960,0.413326,94494.0,94493.0,0.25293456]
[1736363657355,0.774126,94494.0,94493.0,0.25293456]
[1736363657551,0.05293,94487.0,94467.0,0.3608]
[1736363657755,0.052935,94479.0,94467.0,0.3608]
[1736363657957,0.413335,94479.0,94478.0,0.10778525]
[1736363658154,0.3608,94481.0,94456.0,0.61444808]
[1736363658155,0.3604,94480.0,94456.0,0.61444808]
[1736363658359,0.05294,94469.0,94456.0,0.61388808]
[1736363658558,0.1613825,94470.0,94456.0,0.61388808]
[1736363658761,0.052947,94458.0,94456.0,0.61388808]
[1736363659465,0.052947,94458.0,94456.0,0.25508808]
[1736363659662,0.052947,94458.0,94456.0,0.002]
[1736363660057,0.3608,94457.0,94456.0,0.002]
[1736363661856,0.053947,94457.0,94456.0,0.002]
[1736363662069,0.414747,94457.0,94456.0,0.002]
[1736363662364,0.413747,94457.0,94456.0,0.002]
[1736363662750,0.052947,94457.0,94456.0,0.002]
[1736363663054,0.3604,94461.0,94456.0,1.502]
[1736363663256,0.413345,94461.0,94458.0,0.3608]
[1736363663665,0.413345,94461.0,94456.0,1.50256]
[1736363663861,0.413345,94461.0,94456.0,1.8628]
[1736363664064,0.052946,94458.0,94456.0,1.8628]
[1736363664265,0.052946,94458.0,94456.0,1.502]
[1736363664772,0.003,94457.0,94456.0,1.501]
[1736363665261,0.3604,94461.0,94456.0,1.554947]
[1736363665466,0.001,94457.0,94456.0,1.501]
[1736363665966,0.053947,94457.0,94456.0,0.001]
[1736363666467,0.052947,94457.0,94456.0,0.001]
[1736363666767,0.052947,94457.0,94456.0,0.002]
[1736363667470,0.3604,94461.0,94456.0,0.002]
[1736363667669,0.3604,94461.0,94456.0,0.3628]
[1736363668466,0.052947,94457.0,94456.0,0.002]
[1736363668965,0.413347,94457.0,94456.0,0.002]
[1736363669164,0.274147,94460.0,94456.0,0.002]
[1736363669375,0.274147,94460.0,94456.0,0.001]
[1736363669669,0.052947,94457.0,94456.0,0.002]
[1736363669865,0.052947,94457.0,94456.0,0.001]
[1736363670169,0.053947,94457.0,94456.0,0.001]
[1736363671867,0.052952,94448.0,94446.0,0.3608]
[1736363672056,0.052949,94454.0,94446.0,0.3608]
[1736363672260,0.052949,94454.0,94448.0,0.052952]
[1736363672756,0.005,94457.0,94450.0,0.052951]
[1736363672957,0.001,94457.0,94451.0,0.05295]
[1736363673463,0.001,94457.0,94456.0,0.3608]
[1736363673657,0.3604,94468.0,94456.0,0.3608]
[1736363673658,0.01331651,94460.0,94456.0,0.3608]
[1736363673862,0.052949,94454.0,94448.0,0.054952]
[1736363674068,0.052945,94460.0,94450.0,0.052951]
[1736363674265,0.052942,94467.0,94450.0,0.052951]
[1736363674460,0.052946,94459.0,94450.0,0.052951]
[1736363674667,0.052947,94458.0,94450.0,0.052951]
[1736363675068,0.052947,94458.0,94451.0,0.05295]
[1736363675270,0.01330871,94468.0,94451.0,0.001]
[1736363675472,0.1613825,94480.0,94456.0,0.3608]
[1736363675473,0.052945,94461.0,94456.0,0.3608]
[1736363675979,0.052947,94457.0,94456.0,0.3608]
[1736363677872,0.05295,94452.0,94451.0,0.001]
[1736363678072,0.05295,94452.0,94436.0,0.3608]
[1736363678073,0.052958,94437.0,94436.0,0.3608]
[1736363678281,0.052958,94437.0,94420.0,0.1733]
[1736363678282,0.052964,94427.0,94426.0,0.3608]
[1736363678771,0.05296,94434.0,94430.0,0.052962]
[1736363678973,0.2613825,94440.0,94421.0,1.5]
[1736363679177,0.052968,94420.0,94419.0,0.3608]
[1736363680377,0.052968,94420.0,94419.0,0.3638]
[1736363681080,0.052968,94420.0,94419.0,0.003]
[1736363682263,0.053968,94420.0,94419.0,0.003]
[1736363682770,0.055968,94420.0,94419.0,0.003]
[1736363682965,0.052974,94408.0,94407.0,0.3608]
[1736363683172,0.052978,94401.0,94400.0,0.1]
[1736363683371,0.3608,94406.0,94380.0,0.3608]
[1736363683681,0.05299,94381.0,94380.0,0.3608]
[1736363684667,0.3608,94398.0,94380.0,0.3608]
[1736363684870,0.09355088,94405.0,94380.0,0.3608]
[1736363685064,0.052978,94401.0,94397.0,0.3608]
[1736363685280,0.05298,94398.0,94397.0,0.3608]
[1736363685784,0.10614899,94405.0,94397.0,0.3608]
[1736363685978,0.09355088,94405.0,94398.0,0.3608]
[1736363686180,0.001,94406.0,94398.0,0.5283]
[1736363686680,0.001,94400.0,94398.0,0.5283]
[1736363687168,0.001,94400.0,94389.0,0.00064]
[1736363687370,0.052983,94393.0,94383.0,0.3608]
[1736363687584,0.052984,94391.0,94383.0,0.3608]
[1736363687883,0.052984,94391.0,94384.0,1.5]
[1736363688282,0.052984,94391.0,94383.0,0.3608]
[1736363688485,0.1613825,94393.0,94383.0,0.3608]
[1736363688680,0.052986,94387.0,94383.0,0.3608]
[1736363688880,0.052988,94384.0,94383.0,1.8608]
[1736363689180,0.052988,94384.0,94374.0,0.052993]
[1736363689181,0.001,94391.0,94371.0,0.3352]
[1736363689371,0.052992,94376.0,94374.0,0.3608]
[1736363690783,0.052991,94378.0,94366.0,0.3608]
[1736363690980,0.1613825,94384.0,94366.0,0.3608]
[1736363690981,0.052997,94369.0,94366.0,0.3608]
[1736363691281,0.052997,94368.0,94366.0,0.3608]
[1736363691485,0.052993,94375.0,94366.0,0.3608]
[1736363691678,0.17392171,94384.0,94366.0,0.3608]
[1736363691882,0.05299,94380.0,94374.0,0.3608]
[1736363692082,0.052991,94379.0,94374.0,0.3608]
[1736363692478,0.01253921,94384.0,94374.0,0.3608]
[1736363692678,0.052987,94386.0,94383.0,0.3608]
[1736363693082,0.001,94384.0,94383.0,0.3608]
[1736363693586,0.05298,94398.0,94383.0,0.3608]
[1736363693785,0.052985,94390.0,94383.0,0.3608]
[1736363693989,0.052987,94385.0,94383.0,0.3608]
[1736363694473,0.052987,94385.0,94373.0,0.052994]
[1736363694679,0.1613825,94393.0,94373.0,0.052994]
[1736363694877,0.052989,94382.0,94381.0,0.3608]
[1736363695280,0.002,94385.0,94374.0,0.3608]
[1736363695480,0.052992,94376.0,94374.0,0.3608]
[1736363695978,0.002,94385.0,94375.0,1.5]
[1736363696181,0.052988,94384.0,94382.0,0.3608]
[1736363696578,0.002,94385.0,94382.0,0.3608]
[1736363697185,0.05298,94398.0,94382.0,0.3608]
[1736363697491,0.37347056,94399.0,94390.0,0.3608]
[1736363697991,0.052984,94391.0,94390.0,0.3608]
[1736363698382,0.052981,94397.0,94390.0,0.3608]
[1736363698776,0.37347056,94399.0,94390.0,0.3608]
[1736363698983,0.052985,94389.0,94384.0,0.1652]
[1736363699181,0.052987,94386.0,94384.0,0.1652]
[1736363700382,0.05299,94381.0,94380.0,0.3608]
[1736363700692,0.05298,94398.0,94380.0,0.3608]
[1736363700987,0.3628,94399.0,94390.0,0.3608]
[1736363700988,0.052984,94392.0,94390.0,0.3608]
[1736363701192,0.3628,94399.0,94380.0,0.3608]
[1736363701393,0.052992,94377.0,94371.0,0.3608]
[1736363701590,0.052993,94375.0,94371.0,0.3608]
[1736363701788,0.052994,94374.0,94371.0,0.3608]
[1736363701989,0.052994,94373.0,94371.0,0.3608]
[1736363702487,0.052994,94373.0,94371.0,0.413795]
[1736363703883,0.052992,94378.0,94375.0,0.052992]
[1736363704192,0.002,94392.0,94371.0,0.7216]
[1736363704394,0.002,94392.0,94385.0,0.3608]
[1736363704591,0.052987,94386.0,94385.0,0.3608]
[1736363704894,0.002,94392.0,94390.0,0.052984]
[1736363705092,0.01217918,94402.0,94401.0,0.052978]
[1736363705286,0.09355088,94406.0,94401.0,0.413778]
[1736363705487,0.052978,94402.0,94401.0,0.3608]
[1736363705689,0.052983,94393.0,94392.0,0.0006]
[1736363705900,0.09355088,94406.0,94391.0,0.3608]
[1736363706199,0.05298,94398.0,94392.0,1.5]
[1736363706396,0.052977,94404.0,94392.0,1.5]
[1736363706598,0.052977,94404.0,94402.0,0.3608]
[1736363706799,0.052977,94404.0,94403.0,0.052977]
[1736363707193,0.01214879,94409.0,94398.0,0.05298]
[1736363707401,0.005,94406.0,94392.0,0.00064]
[1736363707697,0.052989,94382.0,94381.0,0.3608]
[1736363708298,0.052989,94382.0,94381.0,0.7216]
[1736363708496,0.01203574,94393.0,94381.0,0.7216]
[1736363708701,0.052983,94393.0,94392.0,0.3608]
[1736363709104,0.052979,94400.0,94397.0,0.05298]
[1736363709292,0.009,94404.0,94392.0,0.3608]
[1736363709498,0.37308494,94411.0,94392.0,0.3608]
[1736363709499,0.052977,94405.0,94402.0,0.3608]
[1736363709692,0.052975,94408.0,94402.0,0.3608]
[1736363709894,0.3608,94411.0,94402.0,0.3608]
[1736363710102,0.1247345,94414.0,94412.0,0.052972]
[1736363710298,0.1247345,94414.0,94410.0,0.3608]
[1736363710507,0.1777065,94414.0,94410.0,0.3608]
[1736363710801,0.1777065,94414.0,94410.0,0.413773]
[1736363710997,0.1247345,94414.0,94413.0,0.052972]
[1736363711599,0.15468491,94422.0,94421.0,0.052967]
[1736363711898,0.15468491,94422.0,94421.0,0.413767]
[1736363711899,0.12516983,94422.0,94421.0,0.413767]
[1736363712405,0.1876056,94439.0,94438.0,0.052958]
[1736363712604,0.1,94440.0,94438.0,0.413758]
[1736363713507,0.008,94439.0,94438.0,0.413758]
[1736363714017,0.1,94440.0,94438.0,0.413758]
[1736363714211,0.101,94440.0,94438.0,0.413758]
[1736363715014,0.1,94460.0,94439.0,0.3608]
[1736363715213,0.1,94460.0,94458.0,0.413746]
[1736363715810,0.152945,94460.0,94458.0,1.8608]
[1736363716214,0.1880046,94459.0,94458.0,0.3608]
[1736363717016,0.153945,94460.0,94458.0,0.3608]
[1736363717416,0.101,94460.0,94458.0,0.3608]
[1736363717613,0.105,94460.0,94458.0,0.413746]
[1736363718223,0.2880046,94480.0,94474.0,0.052937]
[1736363718523,0.052935,94479.0,94477.0,0.3608]
[1736363719022,0.1,94480.0,94478.0,0.052935]
[1736363719822,0.1,94480.0,94477.0,0.3628]
[1736363719823,0.052935,94478.0,94477.0,0.3628]
[1736363720215,0.052935,94478.0,94477.0,0.002]
[1736363720418,0.1,94480.0,94468.0,0.5221825]
[1736363720614,0.1,94480.0,94478.0,0.052935]
[1736363720810,0.1,94480.0,94476.0,0.3608]
[1736363721020,0.1,94480.0,94476.0,0.33879999]
[1736363721622,0.1,94480.0,94479.0,0.052935]
[1736363722820,0.1,94480.0,94479.0,0.06928257]
[1736363723121,0.052929,94490.0,94486.0,0.052931]
[1736363723330,0.09358851,94491.0,94489.0,0.413729]
[1736363724227,0.052928,94490.0,94489.0,0.3608]
[1736363724619,0.052934,94480.0,94479.0,0.005]
[1736363725524,0.052936,94478.0,94476.0,0.3608]
[1736363727027,0.09358851,94485.0,94473.0,0.3608]
[1736363727226,0.052946,94459.0,94458.0,0.3608]
[1736363727419,0.052946,94459.0,94449.0,0.3608]
[1736363727420,0.052951,94450.0,94449.0,0.3608]
[1736363727614,0.052955,94442.0,94441.0,0.3608]
[1736363727822,0.052953,94447.0,94441.0,0.3608]
[1736363728017,0.052953,94447.0,94444.0,0.052954]
[1736363728328,0.052953,94447.0,94445.0,0.052953]
[1736363728528,0.3608,94456.0,94441.0,0.3608]
[1736363728826,0.3608,94456.0,94446.0,0.052953]
[1736363729025,0.001,94447.0,94446.0,0.052953]
[1736363729424,0.09358851,94455.0,94454.0,0.052949]
[1736363729626,0.09358851,94455.0,94454.0,0.413749]
[1736363730424,0.052947,94457.0,94454.0,0.3608]
[1736363730623,0.052947,94457.0,94455.0,0.052948]
[1736363731733,0.052952,94447.0,94446.0,0.002]
[1736363732233,0.052947,94457.0,94454.0,0.052948]
[1736363732431,0.052942,94465.0,94464.0,0.052942]
[1736363732624,0.3608,94487.0,94463.0,0.3608]
[1736363732824,0.052935,94478.0,94477.0,0.3608]
[1736363733833,0.01210513,94486.0,94465.0,0.052942]
[1736363734031,0.05294,94470.0,94465.0,0.052942]
[1736363734220,0.1613825,94480.0,94465.0,0.052942]
[1736363734627,0.1613825,94480.0,94472.0,0.3608]
[1736363734834,0.052943,94464.0,94463.0,0.3608]
[1736363736036,0.053943,94464.0,94463.0,0.3648]
[1736363736730,0.054943,94464.0,94463.0,0.3648]
[1736363737137,0.002,94464.0,94463.0,0.417744]
[1736363737337,0.09336732,94477.0,94476.0,0.052936]
[1736363737526,0.09336732,94482.0,94481.0,0.052933]
[1736363737727,0.09336732,94482.0,94481.0,1.552933]
[1736363737926,0.2,94500.0,94481.0,1.552933]
[1736363738132,0.2,94500.0,94492.0,0.3608]
[1736363738338,0.2,94500.0,94499.0,0.052923]
[1736363738525,0.052923,94499.0,94492.0,0.3608]
[1736363738841,0.2,94500.0,94499.0,0.052923]
[1736363739030,0.2,94500.0,94492.0,0.3608]
[1736363739423,0.252923,94500.0,94499.0,1.503]
[1736363740630,0.2,94500.0,94499.0,1.554923]
[1736363741137,0.2,94500.0,94499.0,1.555923]
[1736363741926,0.2,94500.0,94499.0,0.055923]
[1736363742440,0.252923,94500.0,94499.0,0.055923]
[1736363742638,0.252923,94500.0,94499.0,0.004]
[1736363742942,0.2,94500.0,94499.0,0.056923]
[1736363743236,0.1,94520.0,94519.0,0.052912]
[1736363743533,0.152912,94520.0,94519.0,0.413712]
[1736363743739,0.152912,94520.0,94519.0,0.3608]
[1736363744037,0.052915,94514.0,94511.0,0.3608]
[1736363744236,0.152912,94520.0,94519.0,0.052912]
[1736363744433,0.1,94520.0,94519.0,0.052912]
[1736363744632,0.152912,94520.0,94519.0,0.052912]
[1736363744836,0.1,94520.0,94519.0,0.052912]
[1736363745040,0.1,94520.0,94513.0,0.413715]
[1736363745226,0.052915,94514.0,94504.0,0.3608]
[1736363745536,0.05292,94505.0,94504.0,0.3608]
[1736363745930,0.052923,94500.0,94499.0,0.001]
[1736363746235,0.052938,94473.0,94472.0,0.2522966]
[1736363747740,0.053938,94473.0,94472.0,0.3072346]
[1736363747940,0.053938,94473.0,94472.0,0.054938]
[1736363748132,0.053938,94473.0,94472.0,0.002]
[1736363748331,0.054938,94473.0,94472.0,0.007]
[1736363748937,0.053938,94473.0,94472.0,0.005]
[1736363749236,0.001,94473.0,94472.0,0.005]
[1736363749443,0.052924,94498.0,94490.0,0.052928]
[1736363749628,0.1880046,94499.0,94490.0,0.413728]
[1736363750041,0.09468333,94491.0,94490.0,1.913728]
[1736363750634,0.052918,94508.0,94507.0,0.052919]
[1736363750840,0.052918,94508.0,94507.0,0.413719]
[1736363751736,0.1,94520.0,94513.0,0.052915]
[1736363752045,0.1,94520.0,94519.0,0.052912]
[1736363753546,0.1,94520.0,94516.0,0.3608]
[1736363753838,0.052913,94518.0,94516.0,0.3608]
[1736363754731,0.052913,94517.0,94516.0,0.3618]
[1736363755445,0.052913,94517.0,94516.0,0.3628]
[1736363755640,0.103,94520.0,94516.0,0.3628]
[1736363755840,0.103,94520.0,94519.0,0.052912]
[1736363756238,0.103,94520.0,94516.0,0.36336]
[1736363756239,0.003,94518.0,94516.0,0.36336]
[1736363756442,0.003,94518.0,94516.0,0.3628]
[1736363756834,0.052913,94517.0,94516.0,0.3628]
[1736363758139,0.052913,94517.0,94516.0,0.3608]
[1736363758341,0.052913,94517.0,94516.0,0.3628]
[1736363758535,0.052913,94517.0,94516.0,0.002]
[1736363758850,0.052914,94516.0,94507.0,0.3608]
[1736363759045,0.001,94517.0,94507.0,0.3608]
[1736363759243,0.001,94517.0,94516.0,0.413714]
[1736363759839,0.002,94517.0,94516.0,0.413714]
[1736363760346,0.002,94517.0,94516.0,0.713714]
[1736363760645,0.1,94540.0,94516.0,0.713714]
[1736363760646,0.1,94540.0,94539.0,0.052901]
[1736363760852,0.1,94540.0,94539.0,0.413701]
[1736363761039,0.18766854,94551.0,94550.0,0.052895]
[1736363761239,0.413341,94560.0,94559.0,0.05289]
[1736363761443,0.413341,94560.0,94559.0,0.41369]
[1736363761637,0.2700069,94568.0,94567.0,0.052885]
[1736363761841,0.1,94580.0,94573.0,0.052882]
[1736363762149,0.1,94580.0,94573.0,0.413682]
[1736363762363,0.1,94580.0,94579.0,0.052879]
[1736363762646,0.1,94580.0,94579.0,0.413679]
[1736363762851,0.2,94600.0,94579.0,0.713679]
[1736363763038,0.2,94600.0,94599.0,0.7216]
[1736363764252,0.203,94600.0,94599.0,1.0216]
[1736363764850,0.055825,94600.0,94599.0,1.03344661]
[1736363765046,0.1,94620.0,94601.0,0.052866]
[1736363765348,0.1,94620.0,94619.0,0.413656]
[1736363766142,0.1,94620.0,94619.0,0.3608]
[1736363766552,0.1,94620.0,94619.0,2.1608]
[1736363766744,0.1,94640.0,94638.0,0.052845]
[1736363766949,0.1,94640.0,94639.0,0.3608]
[1736363768546,0.101,94640.0,94639.0,0.3608]
[1736363769258,0.105,94640.0,94639.0,0.3608]
[1736363771846,0.101,94640.0,94639.0,0.3658]
[1736363772150,0.101,94640.0,94639.0,0.3688]
[1736363772358,0.1,94640.0,94639.0,0.3638]
[1736363772550,0.101,94640.0,94639.0,0.3688]
[1736363772855,0.101,94640.0,94639.0,0.7296]
[1736363773349,0.101,94640.0,94639.0,1.0296]
[1736363773550,0.08040863,94640.0,94639.0,1.0296]
[1736363773854,0.04136832,94640.0,94639.0,1.0266]
[1736363774057,0.04136832,94640.0,94639.0,0.7266]
[1736363774657,0.04036832,94640.0,94639.0,0.7276]
[1736363775260,0.04036832,94640.0,94639.0,0.7236]
[1736363775552,0.04136832,94640.0,94639.0,0.7286]
[1736363776557,0.04136832,94640.0,94639.0,0.7266]
[1736363776746,0.04136832,94640.0,94639.0,0.7306]
[1736363776951,0.04136832,94640.0,94631.0,0.00056]
[1736363777154,0.052852,94626.0,94625.0,0.3608]
[1736363777550,0.052848,94634.0,94625.0,0.3608]
[1736363777750,0.04136832,94640.0,94639.0,0.005]
[1736363777953,0.04136832,94640.0,94639.0,0.057845]
[1736363778145,0.04136832,94640.0,94639.0,0.357845]
[1736363778558,0.04136832,94640.0,94639.0,0.057845]
[1736363778757,0.04136832,94640.0,94639.0,1.557845]
[1736363778956,0.04036832,94640.0,94639.0,1.852845]
[1736363779160,0.04036832,94640.0,94639.0,1.552845]
[1736363779457,0.04036832,94640.0,94639.0,1.56430376]
[1736363780257,0.04036832,94640.0,94639.0,1.552845]
[1736363780661,0.04136832,94640.0,94635.0,0.3608]
[1736363781256,0.04136832,94640.0,94636.0,1.5]
[1736363781457,0.052846,94638.0,94636.0,1.5]
[1736363782155,0.052846,94638.0,94636.0,1.552847]
[1736363782556,0.04136832,94640.0,94638.0,0.052846]
[1736363783467,0.04036832,94640.0,94638.0,0.052846]
[1736363783665,0.04136832,94640.0,94638.0,0.052846]
[1736363783960,0.09421332,94640.0,94638.0,0.052846]
[1736363784162,0.09321332,94640.0,94638.0,0.052846]
[1736363784350,0.04136832,94640.0,94635.0,0.3628]
[1736363784559,0.052846,94637.0,94635.0,0.3608]
[1736363784852,0.052853,94624.0,94619.0,0.3608]
[1736363785061,0.25442164,94636.0,94621.0,0.052855]
[1736363785361,0.052856,94620.0,94619.0,0.3608]
[1736363786065,0.052856,94620.0,94610.0,0.052861]
[1736363786066,0.05286,94612.0,94610.0,0.052861]
[1736363786365,0.3608,94611.0,94590.0,0.16103482]
[1736363786559,0.3608,94611.0,94596.0,1.5]
[1736363786560,0.3608,94603.0,94596.0,1.5]
[1736363786862,0.052869,94597.0,94592.0,0.052871]
[1736363787067,0.052869,94597.0,94578.0,0.3608]